[Event "Early-Titled-Tuesday-Blitz-September-05-2023"]
[Site "Chess.com"]
[Date "2023.09.05"]
[Round "4"]
[White "Irina_Mikhaylova"]
[Black "Cambek64"]
[Result "0-1"]
[WhiteElo "2306"]
[BlackElo "2492"]
[TimeControl "180+1"]
[EndTime "8:37:20 PDT"]
[Termination "Cambek64 won by resignation"]

1. d4 {[%clk 0:03:00.9]} 1... c5 {[%clk 0:02:54.3]} 2. Nf3 {[%clk 0:02:59.4]}
2... cxd4 {[%clk 0:02:53.6]} 3. Nxd4 {[%clk 0:02:59.8]} 3... d5 {[%clk
0:02:52.9]} 4. Nf3 {[%clk 0:02:56.9]} 4... Nc6 {[%clk 0:02:51.1]} 5. c4 {[%clk
0:02:56.6]} 5... d4 {[%clk 0:02:50.7]} 6. e3 {[%clk 0:02:56.5]} 6... e5 {[%clk
0:02:51]} 7. exd4 {[%clk 0:02:57]} 7... exd4 {[%clk 0:02:51]} 8. Bd3 {[%clk
0:02:54.1]} 8... Nf6 {[%clk 0:02:49.9]} 9. O-O {[%clk 0:02:52.6]} 9... Be7
{[%clk 0:02:50.1]} 10. Bg5 {[%clk 0:02:52.5]} 10... O-O {[%clk 0:02:50]} 11.
Nbd2 {[%clk 0:02:52.9]} 11... Bg4 {[%clk 0:02:46.5]} 12. h3 {[%clk 0:02:49.9]}
12... Bh5 {[%clk 0:02:45.3]} 13. Qb3 {[%clk 0:02:38]} 13... Qc8 {[%clk
0:02:39.5]} 14. Rfe1 {[%clk 0:02:28.5]} 14... Rd8 {[%clk 0:02:38.5]} 15. a3
{[%clk 0:02:09.1]} 15... Bg6 {[%clk 0:02:32.9]} 16. Bxg6 {[%clk 0:02:00.2]}
16... hxg6 {[%clk 0:02:31.7]} 17. Qd3 {[%clk 0:02:00.8]} 17... a5 {[%clk
0:02:29.2]} 18. Ne5 {[%clk 0:01:52]} 18... Nxe5 {[%clk 0:01:52]} 19. Rxe5 {[%clk
0:01:51]} 19... Bd6 {[%clk 0:01:49.1]} 20. Bxf6 {[%clk 0:01:33.1]} 20... gxf6
{[%clk 0:01:47]} 21. Rd5 {[%clk 0:01:30.8]} 21... Be5 {[%clk 0:01:37.5]} 22.
Rxd8+ {[%clk 0:01:14.7]} 22... Qxd8 {[%clk 0:01:37]} 23. Nf3 {[%clk 0:01:14.8]}
23... Qd6 {[%clk 0:01:31.3]} 24. Rd1 {[%clk 0:00:59.8]} 24... Rd8 {[%clk
0:01:27.4]} 25. Kf1 {[%clk 0:00:38.2]} 25... b6 {[%clk 0:01:26.3]} 26. Nd2
{[%clk 0:00:30.1]} 26... Qc6 {[%clk 0:01:18.3]} 27. Nf3 {[%clk 0:00:22.6]} 27...
Qc5 {[%clk 0:01:10.5]} 28. g3 {[%clk 0:00:21.4]} 28... Rc8 {[%clk 0:00:58.7]}
29. Rc1 {[%clk 0:00:20.5]} 29... a4 {[%clk 0:00:52.6]} 30. Nd2 {[%clk
0:00:19.4]} 30... b5 {[%clk 0:00:51.6]} 31. f4 {[%clk 0:00:18.6]} 31... Bb8
{[%clk 0:00:47.9]} 32. Ne4 {[%clk 0:00:18.2]} 32... Qc6 {[%clk 0:00:48.2]} 33.
c5 {[%clk 0:00:16.9]} 33... f5 {[%clk 0:00:46.2]} 34. Ng5 {[%clk 0:00:15.2]}
34... Qh1+ {[%clk 0:00:45.4]} 35. Kf2 {[%clk 0:00:15.7]} 35... Qxc1 {[%clk
0:00:45.9]} 36. Qxd4 {[%clk 0:00:16]} 36... Qxc5 {[%clk 0:00:44.8]} 37. Qxc5
{[%clk 0:00:15.8]} 37... Rxc5 {[%clk 0:00:43.9]} 0-1

[Event "Early-Titled-Tuesday-Blitz-September-05-2023"]
[Site "Chess.com"]
[Date "2023.09.05"]
[Round "4"]
[White "Genghis_K"]
[Black "Orlov_Oleg"]
[Result "1-0"]
[WhiteElo "2863"]
[BlackElo "2579"]
[TimeControl "180+1"]
[EndTime "8:37:22 PDT"]
[Termination "Genghis_K won on time"]

1. d4 {[%clk 0:02:07.1]} 1... Nf6 {[%clk 0:02:58.8]} 2. c4 {[%clk 0:02:07.4]}
2... g6 {[%clk 0:02:58.8]} 3. g3 {[%clk 0:02:07.9]} 3... Bg7 {[%clk 0:02:58.8]}
4. Bg2 {[%clk 0:02:08.7]} 4... O-O {[%clk 0:02:59.2]} 5. Nc3 {[%clk 0:02:09]}
5... c6 {[%clk 0:02:59.2]} 6. e4 {[%clk 0:02:08.9]} 6... d6 {[%clk 0:02:35.9]}
7. Nge2 {[%clk 0:01:58.2]} 7... a5 {[%clk 0:02:30]} 8. O-O {[%clk 0:00:33.4]}
8... Na6 {[%clk 0:02:26.4]} 9. h3 {[%clk 0:00:33.8]} 9... Qc7 {[%clk 0:01:39.9]}
10. Be3 {[%clk 0:00:27.3]} 10... e5 {[%clk 0:01:30]} 11. d5 {[%clk 0:00:18.8]}
11... Nc5 {[%clk 0:00:28.6]} 12. Qd2 {[%clk 0:00:17.3]} 12... cxd5 {[%clk
0:00:13.2]} 13. cxd5 {[%clk 0:00:18.2]} 13... Bd7 {[%clk 0:00:11]} 14. Rac1
{[%clk 0:00:18.4]} 14... Rfc8 {[%clk 0:00:08.6]} 15. Kh2 {[%clk 0:00:19.1]}
15... Qd8 {[%clk 0:00:07.7]} 16. f4 {[%clk 0:00:19.3]} 16... Ne8 {[%clk
0:00:05.9]} 17. f5 {[%clk 0:00:19.6]} 17... b5 {[%clk 0:00:04.4]} 18. g4 {[%clk
0:00:17.6]} 18... b4 {[%clk 0:00:04.3]} 19. Nd1 {[%clk 0:00:18.4]} 19... Bb5
{[%clk 0:00:04.5]} 20. Nf2 {[%clk 0:00:18.2]} 20... Na4 {[%clk 0:00:02.5]} 21.
g5 {[%clk 0:00:17.5]} 21... Bf8 {[%clk 0:00:02.1]} 22. Ng4 {[%clk 0:00:17.7]}
22... Qd7 {[%clk 0:00:01.9]} 23. Rf2 {[%clk 0:00:07.7]} 1-0

[Event "Early-Titled-Tuesday-Blitz-September-05-2023"]
[Site "Chess.com"]
[Date "2023.09.05"]
[Round "4"]
[White "Chernov_Mikhail"]
[Black "Orest_Vovk"]
[Result "0-1"]
[WhiteElo "2409"]
[BlackElo "2600"]
[TimeControl "180+1"]
[EndTime "8:37:22 PDT"]
[Termination "Orest_Vovk won by resignation"]

1. e4 {[%clk 0:03:00.9]} 1... g6 {[%clk 0:02:54.1]} 2. d4 {[%clk 0:02:57.2]}
2... Nf6 {[%clk 0:02:53.6]} 3. Nc3 {[%clk 0:02:56.5]} 3... d5 {[%clk 0:02:53]}
4. e5 {[%clk 0:02:45.1]} 4... Ne4 {[%clk 0:02:45.8]} 5. f3 {[%clk 0:02:23.9]}
5... Nxc3 {[%clk 0:02:44.9]} 6. bxc3 {[%clk 0:02:24.8]} 6... c5 {[%clk 0:02:45]}
7. f4 {[%clk 0:02:24.8]} 7... Nc6 {[%clk 0:02:44.6]} 8. Nf3 {[%clk 0:02:24.6]}
8... Qb6 {[%clk 0:02:39.9]} 9. Be3 {[%clk 0:01:48.9]} 9... Bg4 {[%clk
0:02:31.8]} 10. Be2 {[%clk 0:01:32]} 10... e6 {[%clk 0:02:29.9]} 11. O-O {[%clk
0:01:31.2]} 11... Bxf3 {[%clk 0:02:23.3]} 12. Bxf3 {[%clk 0:01:31.1]} 12... Be7
{[%clk 0:02:20.3]} 13. Rb1 {[%clk 0:01:30.7]} 13... Qa6 {[%clk 0:02:17.3]} 14.
dxc5 {[%clk 0:01:20.2]} 14... Na5 {[%clk 0:02:13.5]} 15. Bd4 {[%clk 0:01:16.7]}
15... Qc6 {[%clk 0:02:10.1]} 16. Qd2 {[%clk 0:01:13]} 16... Bxc5 {[%clk
0:02:06]} 17. Qf2 {[%clk 0:01:11.8]} 17... Bxd4 {[%clk 0:01:59.4]} 18. cxd4
{[%clk 0:01:11.5]} 18... Nc4 {[%clk 0:01:52]} 19. Rb3 {[%clk 0:01:08.7]} 19...
b6 {[%clk 0:01:50.9]} 20. Be2 {[%clk 0:01:05.8]} 20... O-O {[%clk 0:01:48.2]}
21. Bxc4 {[%clk 0:01:05.2]} 21... dxc4 {[%clk 0:01:39.8]} 22. Rh3 {[%clk
0:01:04.4]} 22... h5 {[%clk 0:01:34.5]} 23. c3 {[%clk 0:01:04.2]} 23... Qe4
{[%clk 0:01:30.9]} 24. Re1 {[%clk 0:00:50.7]} 24... Qf5 {[%clk 0:01:30.3]} 25.
a4 {[%clk 0:00:47.6]} 25... Kg7 {[%clk 0:01:28.3]} 26. Rg3 {[%clk 0:00:44]}
26... h4 {[%clk 0:01:08.8]} 27. Rf3 {[%clk 0:00:26.9]} 27... Rh8 {[%clk
0:01:03.5]} 28. Rd1 {[%clk 0:00:21.3]} 28... Qe4 {[%clk 0:00:51.7]} 29. Re3
{[%clk 0:00:18.7]} 29... Qd5 {[%clk 0:00:51.6]} 30. Qe2 {[%clk 0:00:19.2]} 30...
Rh5 {[%clk 0:00:44.5]} 31. h3 {[%clk 0:00:19.7]} 31... Rf5 {[%clk 0:00:43]} 32.
Rf1 {[%clk 0:00:20.1]} 32... a5 {[%clk 0:00:40.7]} 33. Kh2 {[%clk 0:00:20.5]}
33... b5 {[%clk 0:00:40.7]} 34. axb5 {[%clk 0:00:20.9]} 34... Qxb5 {[%clk
0:00:40.9]} 35. Qa2 {[%clk 0:00:20.8]} 35... Qb3 {[%clk 0:00:38.4]} 36. Re2
{[%clk 0:00:19.4]} 36... Qxc3 {[%clk 0:00:33.9]} 37. Rf3 {[%clk 0:00:17.8]}
37... Qxd4 {[%clk 0:00:32.8]} 0-1

[Event "Early-Titled-Tuesday-Blitz-September-05-2023"]
[Site "Chess.com"]
[Date "2023.09.05"]
[Round "4"]
[White "Hamisandwich"]
[Black "smilingice"]
[Result "0-1"]
[WhiteElo "2645"]
[BlackElo "2428"]
[TimeControl "180+1"]
[EndTime "8:37:24 PDT"]
[Termination "smilingice won by checkmate"]

1. a3 {[%clk 0:02:57.5]} 1... a6 {[%clk 0:02:56.6]} 2. c4 {[%clk 0:02:56.5]}
2... Nf6 {[%clk 0:02:54.5]} 3. Nc3 {[%clk 0:02:54.5]} 3... g6 {[%clk 0:02:54.4]}
4. g3 {[%clk 0:02:51.7]} 4... Bg7 {[%clk 0:02:54.3]} 5. Bg2 {[%clk 0:02:52.2]}
5... O-O {[%clk 0:02:53.4]} 6. e3 {[%clk 0:02:49.5]} 6... d6 {[%clk 0:02:48.1]}
7. Nge2 {[%clk 0:02:47.9]} 7... e5 {[%clk 0:02:47.8]} 8. b4 {[%clk 0:02:45.7]}
8... Nc6 {[%clk 0:02:47.4]} 9. Bb2 {[%clk 0:02:42.6]} 9... Bf5 {[%clk
0:02:46.7]} 10. d3 {[%clk 0:02:40.7]} 10... Qd7 {[%clk 0:02:45.3]} 11. h3 {[%clk
0:02:40.3]} 11... Ne7 {[%clk 0:02:38.9]} 12. g4 {[%clk 0:02:35.5]} 12... Be6
{[%clk 0:02:31.9]} 13. Bxb7 {[%clk 0:02:35.7]} 13... Rab8 {[%clk 0:02:24.2]} 14.
Bg2 {[%clk 0:02:32.2]} 14... c5 {[%clk 0:02:09.6]} 15. b5 {[%clk 0:02:16.4]}
15... axb5 {[%clk 0:02:08.8]} 16. cxb5 {[%clk 0:02:11.3]} 16... d5 {[%clk
0:02:08.4]} 17. a4 {[%clk 0:02:09.5]} 17... d4 {[%clk 0:02:08.5]} 18. exd4
{[%clk 0:01:57.5]} 18... exd4 {[%clk 0:02:02.4]} 19. Ne4 {[%clk 0:01:05.4]}
19... Nxe4 {[%clk 0:02:01.7]} 20. Bxe4 {[%clk 0:01:06.3]} 20... f5 {[%clk
0:02:01.7]} 21. gxf5 {[%clk 0:01:07.2]} 21... Nxf5 {[%clk 0:01:59.7]} 22. Qc2
{[%clk 0:00:52.3]} 22... c4 {[%clk 0:01:51]} 23. Bc6 {[%clk 0:00:35.6]} 23...
Qf7 {[%clk 0:01:47.7]} 24. O-O {[%clk 0:00:15.9]} 24... c3 {[%clk 0:01:15.6]}
25. Bc1 {[%clk 0:00:14.3]} 25... Nh4 {[%clk 0:01:15.6]} 26. Ng3 {[%clk
0:00:08.6]} 26... Bxh3 {[%clk 0:01:10.2]} 27. Qe2 {[%clk 0:00:04.4]} 27... Rbe8
{[%clk 0:00:59.7]} 28. Be3 {[%clk 0:00:02.2]} 28... dxe3 {[%clk 0:00:57.5]} 29.
fxe3 {[%clk 0:00:03.1]} 29... Bxf1 {[%clk 0:00:55.8]} 30. Rxf1 {[%clk 0:00:04]}
30... Qc7 {[%clk 0:00:49.4]} 31. Ne4 {[%clk 0:00:03.8]} 31... Rxf1+ {[%clk
0:00:46.4]} 32. Qxf1 {[%clk 0:00:04.7]} 32... Rf8 {[%clk 0:00:46.7]} 33. Qh3
{[%clk 0:00:03.7]} 33... Nf3+ {[%clk 0:00:45.4]} 34. Kh1 {[%clk 0:00:04.4]}
34... c2 {[%clk 0:00:41]} 35. Qe6+ {[%clk 0:00:04.7]} 35... Kh8 {[%clk
0:00:40.4]} 36. Qc4 {[%clk 0:00:03.7]} 36... Qh2# {[%clk 0:00:39.4]} 0-1

[Event "Early-Titled-Tuesday-Blitz-September-05-2023"]
[Site "Chess.com"]
[Date "2023.09.05"]
[Round "4"]
[White "Rutvij09"]
[Black "Tsyhanchuk_Stanislav"]
[Result "0-1"]
[WhiteElo "2511"]
[BlackElo "2412"]
[TimeControl "180+1"]
[EndTime "8:37:24 PDT"]
[Termination "Tsyhanchuk_Stanislav won by resignation"]

1. e4 {[%clk 0:03:00.9]} 1... c5 {[%clk 0:02:59.4]} 2. Nc3 {[%clk 0:03:00.4]}
2... Nc6 {[%clk 0:02:59.1]} 3. f4 {[%clk 0:03:00.6]} 3... g6 {[%clk 0:02:59.6]}
4. Nf3 {[%clk 0:03:01.2]} 4... Bg7 {[%clk 0:03:00.1]} 5. Bb5 {[%clk 0:03:01.9]}
5... Nd4 {[%clk 0:03:00.2]} 6. O-O {[%clk 0:03:02.6]} 6... Nh6 {[%clk
0:02:56.4]} 7. e5 {[%clk 0:02:57.4]} 7... Nxf3+ {[%clk 0:02:47]} 8. Qxf3 {[%clk
0:02:57]} 8... Nf5 {[%clk 0:02:46.9]} 9. Bd3 {[%clk 0:02:54.6]} 9... Nd4 {[%clk
0:02:43.9]} 10. Qf2 {[%clk 0:02:53.3]} 10... d6 {[%clk 0:02:32.3]} 11. Ne4
{[%clk 0:02:52.6]} 11... O-O {[%clk 0:02:27.5]} 12. c3 {[%clk 0:02:51.5]} 12...
Nf5 {[%clk 0:02:15.6]} 13. Bc2 {[%clk 0:02:35.5]} 13... h5 {[%clk 0:02:10.8]}
14. d4 {[%clk 0:02:25.7]} 14... cxd4 {[%clk 0:01:56.5]} 15. cxd4 {[%clk
0:02:26.6]} 15... Qb6 {[%clk 0:01:38.5]} 16. Rd1 {[%clk 0:01:37]} 16... dxe5
{[%clk 0:01:09.2]} 17. dxe5 {[%clk 0:01:35.4]} 17... Qxf2+ {[%clk 0:01:06.8]}
18. Kxf2 {[%clk 0:01:36.3]} 18... Be6 {[%clk 0:00:57.9]} 19. Bd2 {[%clk
0:01:25.4]} 19... Rac8 {[%clk 0:00:54.8]} 20. Bc3 {[%clk 0:01:23.3]} 20... b5
{[%clk 0:00:43.6]} 21. Bd3 {[%clk 0:01:18.1]} 21... Bc4 {[%clk 0:00:33.1]} 22.
Rd2 {[%clk 0:00:51.2]} 22... b4 {[%clk 0:00:26.5]} 23. Bxb4 {[%clk 0:00:48.2]}
23... Bxd3 {[%clk 0:00:26.8]} 24. Rxd3 {[%clk 0:00:47.3]} 24... Rc4 {[%clk
0:00:27.4]} 25. Bxe7 {[%clk 0:00:46.3]} 25... Nxe7 {[%clk 0:00:25.3]} 26. Kf3
{[%clk 0:00:38.8]} 26... Nf5 {[%clk 0:00:23.1]} 27. g3 {[%clk 0:00:31.9]} 27...
Nd4+ {[%clk 0:00:20.6]} 28. Kg2 {[%clk 0:00:27.3]} 28... Nc2 {[%clk 0:00:13.5]}
29. Rad1 {[%clk 0:00:18.5]} 29... Rxe4 {[%clk 0:00:12.9]} 0-1

[Event "Early-Titled-Tuesday-Blitz-September-05-2023"]
[Site "Chess.com"]
[Date "2023.09.05"]
[Round "4"]
[White "DanielTitichoca"]
[Black "Witik"]
[Result "0-1"]
[WhiteElo "2439"]
[BlackElo "2674"]
[TimeControl "180+1"]
[EndTime "8:37:25 PDT"]
[Termination "Witik won on time"]

1. e4 {[%clk 0:03:00.9]} 1... e5 {[%clk 0:02:58.6]} 2. Nf3 {[%clk 0:02:59.6]}
2... Nc6 {[%clk 0:02:57.9]} 3. Bb5 {[%clk 0:02:59.1]} 3... a6 {[%clk 0:02:57.5]}
4. Ba4 {[%clk 0:02:57.2]} 4... Nf6 {[%clk 0:02:56.1]} 5. O-O {[%clk 0:02:57.1]}
5... b5 {[%clk 0:02:56]} 6. Bb3 {[%clk 0:02:56.4]} 6... Bc5 {[%clk 0:02:56.7]}
7. Nc3 {[%clk 0:02:54.1]} 7... d6 {[%clk 0:02:52.1]} 8. a4 {[%clk 0:02:53.2]}
8... Rb8 {[%clk 0:02:51.3]} 9. Nd5 {[%clk 0:02:50.8]} 9... Nxd5 {[%clk
0:02:47.8]} 10. exd5 {[%clk 0:02:47.2]} 10... Nd4 {[%clk 0:02:23.5]} 11. Nxd4
{[%clk 0:02:45.6]} 11... exd4 {[%clk 0:02:14]} 12. axb5 {[%clk 0:02:40.6]} 12...
axb5 {[%clk 0:02:13.1]} 13. Re1+ {[%clk 0:02:40.9]} 13... Kf8 {[%clk 0:02:13.2]}
14. d3 {[%clk 0:02:30.4]} 14... Qf6 {[%clk 0:02:09.7]} 15. Bd2 {[%clk
0:02:18.5]} 15... h5 {[%clk 0:01:56.1]} 16. Ba5 {[%clk 0:02:16.6]} 16... Bg4
{[%clk 0:01:39.2]} 17. Qd2 {[%clk 0:02:05.6]} 17... h4 {[%clk 0:01:16.5]} 18. h3
{[%clk 0:01:44.7]} 18... Bf5 {[%clk 0:01:15.5]} 19. Bxc7 {[%clk 0:01:32]} 19...
Rc8 {[%clk 0:01:15.3]} 20. Ba5 {[%clk 0:01:31.7]} 20... g5 {[%clk 0:01:08.8]}
21. Bb4 {[%clk 0:01:27]} 21... Bxb4 {[%clk 0:01:01.5]} 22. Qxb4 {[%clk
0:01:26.2]} 22... g4 {[%clk 0:01:01.8]} 23. Ra7 {[%clk 0:01:20.8]} 23... gxh3
{[%clk 0:00:57.9]} 24. Ree7 {[%clk 0:01:20.9]} 24... Rh7 {[%clk 0:00:43.3]} 25.
Qxb5 {[%clk 0:00:20.5]} 25... Qg5 {[%clk 0:00:30]} 26. g3 {[%clk 0:00:05.3]}
26... Qc1+ {[%clk 0:00:18.4]} 27. Kh2 {[%clk 0:00:04]} 27... hxg3+ {[%clk
0:00:19.1]} 28. Kxg3 {[%clk 0:00:01.3]} 28... Qg1+ {[%clk 0:00:19.1]} 0-1

[Event "Early-Titled-Tuesday-Blitz-September-05-2023"]
[Site "Chess.com"]
[Date "2023.09.05"]
[Round "4"]
[White "NowInChess"]
[Black "maurovargas01"]
[Result "1-0"]
[WhiteElo "2265"]
[BlackElo "1863"]
[TimeControl "180+1"]
[EndTime "8:37:25 PDT"]
[Termination "NowInChess won on time"]

1. e4 {[%clk 0:03:00.9]} 1... d5 {[%clk 0:02:56.9]} 2. exd5 {[%clk 0:03:00.6]}
2... Qxd5 {[%clk 0:02:57.8]} 3. Nc3 {[%clk 0:03:00.9]} 3... Qa5 {[%clk
0:02:57.9]} 4. d4 {[%clk 0:02:55.1]} 4... c6 {[%clk 0:02:55.9]} 5. Nf3 {[%clk
0:02:49.5]} 5... Nf6 {[%clk 0:02:53.5]} 6. Bc4 {[%clk 0:02:48.5]} 6... Bg4
{[%clk 0:02:53.4]} 7. h3 {[%clk 0:02:40.3]} 7... Bh5 {[%clk 0:02:53.2]} 8. g4
{[%clk 0:02:38.3]} 8... Bg6 {[%clk 0:02:52]} 9. Ne5 {[%clk 0:02:38.4]} 9... e6
{[%clk 0:02:50.9]} 10. h4 {[%clk 0:02:23.8]} 10... Be4 {[%clk 0:02:37.5]} 11. f3
{[%clk 0:02:04]} 11... Bd5 {[%clk 0:02:36.1]} 12. Bd3 {[%clk 0:02:02.5]} 12...
Bd6 {[%clk 0:02:30.2]} 13. Bd2 {[%clk 0:01:59.9]} 13... Qc7 {[%clk 0:02:26.2]}
14. Nxd5 {[%clk 0:01:49.4]} 14... Nxd5 {[%clk 0:02:17.5]} 15. f4 {[%clk
0:01:36.5]} 15... f6 {[%clk 0:02:11.9]} 16. Nf3 {[%clk 0:01:27.9]} 16... Nxf4
{[%clk 0:02:10.9]} 17. Bxf4 {[%clk 0:01:23.2]} 17... Bxf4 {[%clk 0:02:10.1]} 18.
Qe2 {[%clk 0:01:22.5]} 18... Bg3+ {[%clk 0:02:09.6]} 19. Kf1 {[%clk 0:01:21.6]}
19... Qe7 {[%clk 0:02:00.9]} 20. Kg2 {[%clk 0:01:12]} 20... Bc7 {[%clk
0:01:57.9]} 21. Rae1 {[%clk 0:01:09.9]} 21... Nd7 {[%clk 0:01:21.6]} 22. Qxe6
{[%clk 0:01:07.3]} 22... Qxe6 {[%clk 0:01:11.6]} 23. Rxe6+ {[%clk 0:01:08.2]}
23... Kd8 {[%clk 0:01:11.4]} 24. Rhe1 {[%clk 0:01:04.9]} 24... Bb6 {[%clk
0:01:00]} 25. Bxh7 {[%clk 0:01:02.2]} 25... Kc7 {[%clk 0:00:52.7]} 26. Bf5
{[%clk 0:00:54.2]} 26... Rad8 {[%clk 0:00:44.8]} 27. Re7 {[%clk 0:00:53.4]}
27... g5 {[%clk 0:00:33.7]} 28. h5 {[%clk 0:00:47.7]} 28... c5 {[%clk
0:00:19.6]} 29. Rf7 {[%clk 0:00:46.4]} 29... cxd4 {[%clk 0:00:17.3]} 30. Ree7
{[%clk 0:00:45.7]} 30... Kc6 {[%clk 0:00:08.5]} 31. Bxd7+ {[%clk 0:00:39.6]}
31... Kd6 {[%clk 0:00:04.7]} 32. Re6+ {[%clk 0:00:35]} 32... Kd5 {[%clk
0:00:03.9]} 33. Rexf6 {[%clk 0:00:31.9]} 1-0

[Event "Early-Titled-Tuesday-Blitz-September-05-2023"]
[Site "Chess.com"]
[Date "2023.09.05"]
[Round "4"]
[White "banane_verte"]
[Black "Byniolus"]
[Result "1-0"]
[WhiteElo "2588"]
[BlackElo "2812"]
[TimeControl "180+1"]
[EndTime "8:37:28 PDT"]
[Termination "banane_verte won by resignation"]

1. d4 {[%clk 0:03:00.9]} 1... d6 {[%clk 0:02:57.9]} 2. e4 {[%clk 0:02:59.6]}
2... Nf6 {[%clk 0:02:57.6]} 3. Nc3 {[%clk 0:02:59.2]} 3... c6 {[%clk 0:02:58]}
4. Nf3 {[%clk 0:02:52.6]} 4... Bg4 {[%clk 0:02:57.7]} 5. h3 {[%clk 0:02:49.5]}
5... Bh5 {[%clk 0:02:57.3]} 6. Qe2 {[%clk 0:02:34.9]} 6... e6 {[%clk 0:02:51.7]}
7. g4 {[%clk 0:02:31.5]} 7... Bg6 {[%clk 0:02:51.7]} 8. Bg2 {[%clk 0:02:30.4]}
8... d5 {[%clk 0:02:51.1]} 9. Ne5 {[%clk 0:02:24.2]} 9... Bxe4 {[%clk
0:02:40.1]} 10. Nxe4 {[%clk 0:02:19.2]} 10... dxe4 {[%clk 0:02:39.9]} 11. c3
{[%clk 0:02:14.3]} 11... Nbd7 {[%clk 0:02:33.2]} 12. Nxd7 {[%clk 0:02:11.6]}
12... Qxd7 {[%clk 0:02:31.4]} 13. Bxe4 {[%clk 0:02:07.8]} 13... Nxe4 {[%clk
0:02:30.5]} 14. Qxe4 {[%clk 0:02:07.9]} 14... O-O-O {[%clk 0:02:21.7]} 15. Bf4
{[%clk 0:02:01]} 15... Bd6 {[%clk 0:02:14.1]} 16. O-O-O {[%clk 0:01:55.5]} 16...
Bxf4+ {[%clk 0:01:49]} 17. Qxf4 {[%clk 0:01:56.4]} 17... Qc7 {[%clk 0:01:45.4]}
18. Qe4 {[%clk 0:01:49.2]} 18... h5 {[%clk 0:01:39]} 19. f4 {[%clk 0:01:41.1]}
19... Qa5 {[%clk 0:01:12.3]} 20. Kb1 {[%clk 0:01:41]} 20... Qd5 {[%clk
0:01:12.4]} 21. Qxd5 {[%clk 0:01:28.7]} 21... Rxd5 {[%clk 0:01:13.3]} 22. Rdg1
{[%clk 0:01:28.3]} 22... g6 {[%clk 0:01:09.3]} 23. Kc2 {[%clk 0:01:22.4]} 23...
c5 {[%clk 0:01:06.7]} 24. dxc5 {[%clk 0:01:22.7]} 24... Rxc5 {[%clk 0:01:07.6]}
25. Rd1 {[%clk 0:01:15.4]} 25... Rc4 {[%clk 0:00:59.5]} 26. f5 {[%clk
0:00:52.9]} 26... hxg4 {[%clk 0:00:46.6]} 27. hxg4 {[%clk 0:00:51]} 27... Rxh1
{[%clk 0:00:47.5]} 28. Rxh1 {[%clk 0:00:51]} 28... Rxg4 {[%clk 0:00:44.9]} 29.
fxe6 {[%clk 0:00:51.2]} 29... fxe6 {[%clk 0:00:45.8]} 30. Rh7 {[%clk 0:00:50.2]}
30... Rg2+ {[%clk 0:00:42.7]} 31. Kb3 {[%clk 0:00:47.9]} 31... a5 {[%clk
0:00:33.9]} 32. Re7 {[%clk 0:00:45.8]} 32... g5 {[%clk 0:00:21.9]} 33. Rxe6
{[%clk 0:00:45.3]} 33... g4 {[%clk 0:00:22.8]} 34. Re7 {[%clk 0:00:41.4]} 34...
g3 {[%clk 0:00:19.4]} 35. Rg7 {[%clk 0:00:41.5]} 35... b5 {[%clk 0:00:17.6]} 36.
Rg5 {[%clk 0:00:37.2]} 36... a4+ {[%clk 0:00:08]} 37. Ka3 {[%clk 0:00:37.3]}
37... Rg1 {[%clk 0:00:05.4]} 38. Rxb5 {[%clk 0:00:36.1]} 38... Rf1 {[%clk
0:00:02]} 39. Rg5 {[%clk 0:00:35.2]} 1-0

[Event "Early-Titled-Tuesday-Blitz-September-05-2023"]
[Site "Chess.com"]
[Date "2023.09.05"]
[Round "4"]
[White "Sadykov_Ramil"]
[Black "leschebaza"]
[Result "1-0"]
[WhiteElo "2591"]
[BlackElo "2410"]
[TimeControl "180+1"]
[EndTime "8:37:30 PDT"]
[Termination "Sadykov_Ramil won by resignation"]

1. Nf3 {[%clk 0:03:00.9]} 1... Nf6 {[%clk 0:02:59.8]} 2. c4 {[%clk 0:02:53.4]}
2... g6 {[%clk 0:02:57.7]} 3. Nc3 {[%clk 0:02:52.2]} 3... Bg7 {[%clk 0:02:58.3]}
4. e4 {[%clk 0:02:51]} 4... d6 {[%clk 0:02:58.4]} 5. d4 {[%clk 0:02:51.1]} 5...
O-O {[%clk 0:02:58.7]} 6. Be2 {[%clk 0:02:51.6]} 6... c5 {[%clk 0:02:59.2]} 7.
d5 {[%clk 0:02:44.9]} 7... e6 {[%clk 0:02:59.1]} 8. O-O {[%clk 0:02:44.1]} 8...
exd5 {[%clk 0:02:59.5]} 9. cxd5 {[%clk 0:02:40]} 9... Bg4 {[%clk 0:02:59.2]} 10.
Nd2 {[%clk 0:02:38.6]} 10... Bxe2 {[%clk 0:02:57.7]} 11. Qxe2 {[%clk 0:02:39.5]}
11... Nbd7 {[%clk 0:02:50.5]} 12. Nc4 {[%clk 0:02:39.3]} 12... Ne5 {[%clk
0:02:47.2]} 13. Nxe5 {[%clk 0:02:37.3]} 13... dxe5 {[%clk 0:02:48.1]} 14. Be3
{[%clk 0:02:36.5]} 14... b6 {[%clk 0:02:44.6]} 15. a4 {[%clk 0:02:27.4]} 15...
Ne8 {[%clk 0:02:44.1]} 16. a5 {[%clk 0:02:23.9]} 16... Nd6 {[%clk 0:02:44]} 17.
f3 {[%clk 0:02:18.1]} 17... Qd7 {[%clk 0:02:38]} 18. axb6 {[%clk 0:02:04.3]}
18... axb6 {[%clk 0:02:38.9]} 19. Ra6 {[%clk 0:02:04.8]} 19... Qb7 {[%clk
0:01:33.2]} 20. Rfa1 {[%clk 0:02:02.6]} 20... Rxa6 {[%clk 0:01:33.5]} 21. Qxa6
{[%clk 0:02:01.8]} 21... Rb8 {[%clk 0:01:28.2]} 22. Qxb7 {[%clk 0:01:41.1]}
22... Nxb7 {[%clk 0:01:29.1]} 23. Nb5 {[%clk 0:01:35.5]} 23... Bf8 {[%clk
0:01:28.6]} 24. Ra7 {[%clk 0:01:31.9]} 24... Nd6 {[%clk 0:01:15.8]} 25. Nxd6
{[%clk 0:01:30.4]} 25... Bxd6 {[%clk 0:01:16.7]} 26. Rd7 {[%clk 0:01:24.7]}
26... Bf8 {[%clk 0:01:17.1]} 27. Kf2 {[%clk 0:01:22]} 27... Kg7 {[%clk
0:01:10.4]} 28. f4 {[%clk 0:01:15.8]} 28... exf4 {[%clk 0:01:00.8]} 29. Bxf4
{[%clk 0:01:15.8]} 29... Re8 {[%clk 0:01:01.5]} 30. e5 {[%clk 0:01:12.6]} 30...
g5 {[%clk 0:00:53.1]} 31. Bg3 {[%clk 0:01:12]} 31... Kg6 {[%clk 0:00:49.6]} 32.
Rb7 {[%clk 0:00:59.8]} 32... h5 {[%clk 0:00:35.4]} 33. h3 {[%clk 0:00:57]} 33...
c4 {[%clk 0:00:33.5]} 34. Rxb6+ {[%clk 0:00:52.9]} 34... Kf5 {[%clk 0:00:34]}
35. Rf6+ {[%clk 0:00:48.6]} 35... Ke4 {[%clk 0:00:34.6]} 36. d6 {[%clk
0:00:48.8]} 36... Bg7 {[%clk 0:00:28.7]} 37. d7 {[%clk 0:00:43.7]} 37... Rd8
{[%clk 0:00:23.7]} 38. Rxf7 {[%clk 0:00:43.7]} 38... Bh8 {[%clk 0:00:17.6]} 39.
e6 {[%clk 0:00:42.8]} 39... Bxb2 {[%clk 0:00:17.5]} 40. e7 {[%clk 0:00:43.1]}
40... Bd4+ {[%clk 0:00:14.8]} 41. Ke2 {[%clk 0:00:41.9]} 41... Rxd7 {[%clk
0:00:14.2]} 42. e8=Q+ {[%clk 0:00:42.4]} 42... Re7 {[%clk 0:00:14.7]} 1-0